[Event "Late-Titled-Tuesday-Blitz-May-14-2024"]
[Site "Chess.com"]
[Date "2024.05.14"]
[Round "1"]
[White "bubeliang"]
[Black "David_ATM"]
[Result "1-0"]
[WhiteElo "2810"]
[BlackElo "2452"]
[TimeControl "180+1"]
[EndTime "14:07:49 PDT"]
[Termination "bubeliang won on time"]

1. e4 {[%clk 0:03:00]} 1... e5 {[%clk 0:03:00]} 2. Nf3 {[%clk 0:02:59.6]} 2...
Nc6 {[%clk 0:03:00.6]} 3. Bc4 {[%clk 0:02:59.7]} 3... Bc5 {[%clk 0:03:00.3]} 4.
c3 {[%clk 0:02:59.5]} 4... Nf6 {[%clk 0:02:59.5]} 5. d3 {[%clk 0:02:59.7]} 5...
d6 {[%clk 0:02:58.7]} 6. O-O {[%clk 0:02:59.9]} 6... a6 {[%clk 0:02:58.6]} 7.
Re1 {[%clk 0:02:59.5]} 7... Ba7 {[%clk 0:02:59.1]} 8. h3 {[%clk 0:02:57.4]} 8...
h6 {[%clk 0:02:59.3]} 9. Nbd2 {[%clk 0:02:57.8]} 9... g5 {[%clk 0:02:59.1]} 10.
d4 {[%clk 0:02:57.4]} 10... g4 {[%clk 0:02:42.8]} 11. hxg4 {[%clk 0:02:58.3]}
11... Bxg4 {[%clk 0:02:42.1]} 12. dxe5 {[%clk 0:02:48.1]} 12... Nxe5 {[%clk
0:02:18.9]} 13. Be2 {[%clk 0:02:41.9]} 13... Rg8 {[%clk 0:02:18.5]} 14. Qb3
{[%clk 0:02:37.1]} 14... Nfd7 {[%clk 0:01:39]} 15. Nd4 {[%clk 0:02:30.3]} 15...
Bxe2 {[%clk 0:01:31.4]} 16. Rxe2 {[%clk 0:02:29.8]} 16... Nc5 {[%clk 0:01:20.1]}
17. Qc2 {[%clk 0:02:26.8]} 17... Ne6 {[%clk 0:00:59.6]} 18. N2f3 {[%clk
0:02:13.6]} 18... Nxf3+ {[%clk 0:00:50.4]} 19. Nxf3 {[%clk 0:02:12.5]} 19... Qf6
{[%clk 0:00:50.6]} 20. Kf1 {[%clk 0:02:06.9]} 20... O-O-O {[%clk 0:00:44.9]} 21.
Be3 {[%clk 0:02:03.8]} 21... Rxg2 {[%clk 0:00:29]} 22. Kxg2 {[%clk 0:01:40.2]}
22... Rg8+ {[%clk 0:00:29.4]} 23. Ng5 {[%clk 0:01:31.9]} 23... Nf4+ {[%clk
0:00:11.1]} 24. Bxf4 {[%clk 0:01:11.9]} 24... Qxf4 {[%clk 0:00:12]} 25. Kf1
{[%clk 0:00:43.2]} 25... Qxg5 {[%clk 0:00:12]} 26. Ree1 {[%clk 0:00:42.9]} 26...
Qg2+ {[%clk 0:00:09.8]} 27. Ke2 {[%clk 0:00:42.5]} 27... Qxf2+ {[%clk
0:00:10.3]} 28. Kd1 {[%clk 0:00:42.5]} 28... Qf6 {[%clk 0:00:03.8]} 29. Qe2
{[%clk 0:00:41.8]} 29... Qe5 {[%clk 0:00:02.1]} 30. Rf1 {[%clk 0:00:42.1]} 30...
Bb6 {[%clk 0:00:02.6]} 31. Qf3 {[%clk 0:00:41.8]} 31... Kb8 {[%clk 0:00:03.1]}
32. Kc2 {[%clk 0:00:39.2]} 32... Rg3 {[%clk 0:00:03.4]} 33. Qh1 {[%clk
0:00:29.1]} 33... h5 {[%clk 0:00:03.9]} 34. Rad1 {[%clk 0:00:29.6]} 34... Qg5
{[%clk 0:00:03.7]} 35. Rd2 {[%clk 0:00:29.2]} 35... h4 {[%clk 0:00:03.3]} 36.
Rf5 {[%clk 0:00:27.6]} 36... Qg6 {[%clk 0:00:03]} 37. Qxh4 {[%clk 0:00:25.7]}
37... Ka7 {[%clk 0:00:03.1]} 38. Qf6 {[%clk 0:00:24]} 38... Qg4 {[%clk 0:00:03]}
39. Rf4 {[%clk 0:00:22.5]} 39... Qh3 {[%clk 0:00:02.5]} 40. Re2 {[%clk
0:00:19.2]} 40... Qh1 {[%clk 0:00:02.8]} 41. Qxf7 {[%clk 0:00:18.7]} 41... Rg1
{[%clk 0:00:03]} 42. a3 {[%clk 0:00:12.4]} 42... Rc1+ {[%clk 0:00:03.5]} 43. Kb3
{[%clk 0:00:12.7]} 43... Qd1+ {[%clk 0:00:03.5]} 44. Kb4 {[%clk 0:00:11.5]}
44... a5+ {[%clk 0:00:03.7]} 45. Kc4 {[%clk 0:00:11.2]} 45... Qa4+ {[%clk
0:00:01.3]} 46. Kd5 {[%clk 0:00:12.1]} 46... Qb3+ {[%clk 0:00:00.5]} 47. c4
{[%clk 0:00:13]} 1-0

[Event "Late-Titled-Tuesday-Blitz-May-14-2024"]
[Site "Chess.com"]
[Date "2024.05.14"]
[Round "1"]
[White "AlejandroArias"]
[Black "FLamps8"]
[Result "0-1"]
[WhiteElo "2352"]
[BlackElo "2672"]
[TimeControl "180+1"]
[EndTime "14:07:49 PDT"]
[Termination "FLamps8 won by checkmate"]

1. e3 {[%clk 0:03:00.7]} 1... d5 {[%clk 0:02:58.4]} 2. Nf3 {[%clk 0:03:00.7]}
2... Nf6 {[%clk 0:02:58.8]} 3. c4 {[%clk 0:03:00.8]} 3... e6 {[%clk 0:02:57.6]}
4. b3 {[%clk 0:03:00.7]} 4... a5 {[%clk 0:02:56.9]} 5. a3 {[%clk 0:02:58.5]}
5... b6 {[%clk 0:02:50.9]} 6. Bb2 {[%clk 0:02:57.7]} 6... Bb7 {[%clk 0:02:51.4]}
7. cxd5 {[%clk 0:02:51.9]} 7... exd5 {[%clk 0:02:46.3]} 8. d4 {[%clk 0:02:48.6]}
8... Bd6 {[%clk 0:02:45.1]} 9. Be2 {[%clk 0:02:48.4]} 9... O-O {[%clk
0:02:45.1]} 10. O-O {[%clk 0:02:48.3]} 10... Ne4 {[%clk 0:02:45.7]} 11. Nc3
{[%clk 0:02:40.8]} 11... Nd7 {[%clk 0:02:45.1]} 12. Rc1 {[%clk 0:02:30.2]} 12...
Nxc3 {[%clk 0:02:37]} 13. Rxc3 {[%clk 0:02:27.9]} 13... Qe7 {[%clk 0:02:32.1]}
14. a4 {[%clk 0:02:12.1]} 14... f5 {[%clk 0:02:25]} 15. Bb5 {[%clk 0:02:07.4]}
15... Nf6 {[%clk 0:02:20.6]} 16. Rc1 {[%clk 0:02:02]} 16... f4 {[%clk
0:01:57.5]} 17. exf4 {[%clk 0:01:58.8]} 17... Bxf4 {[%clk 0:01:58.4]} 18. Rc2
{[%clk 0:01:48.8]} 18... Ne4 {[%clk 0:01:55]} 19. Qd3 {[%clk 0:01:37.6]} 19...
Rf6 {[%clk 0:01:48]} 20. Ne5 {[%clk 0:01:30.5]} 20... c5 {[%clk 0:01:32]} 21. g3
{[%clk 0:01:02.8]} 21... Bxe5 {[%clk 0:01:09.7]} 22. dxe5 {[%clk 0:01:02.3]}
22... Rh6 {[%clk 0:01:10.3]} 23. f3 {[%clk 0:00:41.2]} 23... Ng5 {[%clk
0:01:08.9]} 24. h4 {[%clk 0:00:40.6]} 24... Nh3+ {[%clk 0:00:57.4]} 25. Kh2
{[%clk 0:00:38.8]} 25... Nf4 {[%clk 0:00:53.3]} 26. gxf4 {[%clk 0:00:35.4]}
26... Qxh4+ {[%clk 0:00:43.2]} 27. Kg1 {[%clk 0:00:35.5]} 27... Qh1+ {[%clk
0:00:27.5]} 28. Kf2 {[%clk 0:00:35.3]} 28... Qh2+ {[%clk 0:00:28.4]} 29. Ke1
{[%clk 0:00:35]} 29... Qg3+ {[%clk 0:00:25.4]} 30. Kd1 {[%clk 0:00:34.2]} 30...
Qxf4 {[%clk 0:00:24.7]} 31. Rg2 {[%clk 0:00:29.7]} 31... Re6 {[%clk 0:00:20.2]}
32. Rh1 {[%clk 0:00:26.6]} 32... g6 {[%clk 0:00:19.6]} 33. Rg4 {[%clk
0:00:25.6]} 33... Qf7 {[%clk 0:00:19.1]} 34. Rgh4 {[%clk 0:00:22.7]} 34... c4
{[%clk 0:00:15.6]} 35. Qe3 {[%clk 0:00:15.6]} 35... d4 {[%clk 0:00:15.1]} 36.
Qxd4 {[%clk 0:00:10]} 36... Bxf3+ {[%clk 0:00:12.8]} 37. Kc1 {[%clk 0:00:10.2]}
37... Bxh1 {[%clk 0:00:12.8]} 38. Bxc4 {[%clk 0:00:08.8]} 38... Bc6 {[%clk
0:00:10.8]} 39. Bxe6 {[%clk 0:00:07.1]} 39... Qxe6 {[%clk 0:00:11.7]} 40. Rf4
{[%clk 0:00:06.5]} 40... Rf8 {[%clk 0:00:10.3]} 41. Rxf8+ {[%clk 0:00:05.5]}
41... Kxf8 {[%clk 0:00:11.2]} 42. Qd8+ {[%clk 0:00:05.9]} 42... Kf7 {[%clk
0:00:11.4]} 43. Qd4 {[%clk 0:00:04.5]} 43... Qd5 {[%clk 0:00:09.9]} 44. Qf4+
{[%clk 0:00:04.7]} 44... Ke8 {[%clk 0:00:09.5]} 45. Qf6 {[%clk 0:00:03.9]} 45...
Qh1+ {[%clk 0:00:09]} 46. Kc2 {[%clk 0:00:04]} 46... Qe4+ {[%clk 0:00:09]} 47.
Kc1 {[%clk 0:00:04.2]} 47... Qe1+ {[%clk 0:00:08.3]} 48. Kc2 {[%clk 0:00:04.2]}
48... Be4# {[%clk 0:00:08.5]} 0-1

[Event "Late-Titled-Tuesday-Blitz-May-14-2024"]
[Site "Chess.com"]
[Date "2024.05.14"]
[Round "1"]
[White "FizzyBand"]
[Black "gmcorrales"]
[Result "0-1"]
[WhiteElo "2522"]
[BlackElo "2931"]
[TimeControl "180+1"]
[EndTime "14:07:50 PDT"]
[Termination "gmcorrales won on time"]

1. e4 {[%clk 0:02:58.7]} 1... c5 {[%clk 0:02:49.9]} 2. Nf3 {[%clk 0:02:58.9]}
2... d6 {[%clk 0:02:50.6]} 3. d4 {[%clk 0:02:59.6]} 3... cxd4 {[%clk 0:02:51.5]}
4. Nxd4 {[%clk 0:03:00.5]} 4... Nf6 {[%clk 0:02:47.7]} 5. Nc3 {[%clk 0:03:01.1]}
5... g6 {[%clk 0:02:37.1]} 6. Be3 {[%clk 0:03:01.1]} 6... Bg7 {[%clk 0:02:31.4]}
7. f3 {[%clk 0:03:00.7]} 7... O-O {[%clk 0:02:23.4]} 8. Qd2 {[%clk 0:03:00.7]}
8... Nc6 {[%clk 0:02:23.5]} 9. Bc4 {[%clk 0:03:01.1]} 9... Nd7 {[%clk
0:02:22.3]} 10. O-O-O {[%clk 0:02:55.3]} 10... Nb6 {[%clk 0:02:20.3]} 11. Be2
{[%clk 0:02:55]} 11... d5 {[%clk 0:02:18.7]} 12. exd5 {[%clk 0:02:47.7]} 12...
Nxd5 {[%clk 0:02:19.2]} 13. Nxc6 {[%clk 0:02:46.5]} 13... bxc6 {[%clk
0:02:20.1]} 14. Nxd5 {[%clk 0:02:44.4]} 14... cxd5 {[%clk 0:02:19.1]} 15. Qxd5
{[%clk 0:02:44.6]} 15... Qc7 {[%clk 0:02:18.9]} 16. Qxa8 {[%clk 0:02:37.5]}
16... Bf5 {[%clk 0:02:17.8]} 17. Qxf8+ {[%clk 0:02:36.3]} 17... Kxf8 {[%clk
0:02:15.8]} 18. Rd2 {[%clk 0:02:35.6]} 18... h5 {[%clk 0:02:11.9]} 19. g3 {[%clk
0:02:26.4]} 19... Kg8 {[%clk 0:01:32.1]} 20. Rhd1 {[%clk 0:02:25.1]} 20... a5
{[%clk 0:01:19.8]} 21. c4 {[%clk 0:01:40.6]} 21... Qc6 {[%clk 0:01:04.4]} 22. b3
{[%clk 0:01:24.6]} 22... Qe6 {[%clk 0:00:56.2]} 23. Bf2 {[%clk 0:01:00]} 23...
Kh7 {[%clk 0:00:51.9]} 24. Bd3 {[%clk 0:00:39.6]} 24... Qf6 {[%clk 0:00:28.7]}
25. Bxf5 {[%clk 0:00:36.4]} 25... Qxf5 {[%clk 0:00:26.3]} 26. f4 {[%clk
0:00:31.7]} 26... e5 {[%clk 0:00:23.4]} 27. Rd5 {[%clk 0:00:18.6]} 27... Qe4
{[%clk 0:00:20.5]} 28. fxe5 {[%clk 0:00:12.8]} 28... Bh6+ {[%clk 0:00:20.7]} 29.
R5d2 {[%clk 0:00:08.3]} 29... a4 {[%clk 0:00:20.4]} 30. Kb2 {[%clk 0:00:05.5]}
30... Bxd2 {[%clk 0:00:18.7]} 31. Rxd2 {[%clk 0:00:06.4]} 31... Qxe5+ {[%clk
0:00:19.3]} 32. Bd4 {[%clk 0:00:07]} 32... Qe1 {[%clk 0:00:19.6]} 33. Kc2 {[%clk
0:00:05.6]} 33... a3 {[%clk 0:00:18.3]} 34. c5 {[%clk 0:00:05.6]} 34... Qe4+
{[%clk 0:00:14.5]} 35. Kc3 {[%clk 0:00:05.8]} 35... f5 {[%clk 0:00:10.7]} 36. b4
{[%clk 0:00:05.6]} 36... Qb1 {[%clk 0:00:06.7]} 37. c6 {[%clk 0:00:02.2]} 37...
Qe4 {[%clk 0:00:06]} 38. b5 {[%clk 0:00:01.9]} 38... Qd5 {[%clk 0:00:05.8]} 39.
Kb4 {[%clk 0:00:01.4]} 39... Qd6+ {[%clk 0:00:03.9]} 0-1

[Event "Late-Titled-Tuesday-Blitz-May-14-2024"]
[Site "Chess.com"]
[Date "2024.05.14"]
[Round "1"]
[White "Zq1"]
[Black "crosky"]
[Result "1-0"]
[WhiteElo "2614"]
[BlackElo "2293"]
[TimeControl "180+1"]
[EndTime "14:07:53 PDT"]
[Termination "Zq1 won on time"]

1. d4 {[%clk 0:03:00.9]} 1... Nf6 {[%clk 0:02:46.1]} 2. c4 {[%clk 0:02:59.3]}
2... e6 {[%clk 0:02:45.2]} 3. g3 {[%clk 0:02:59.4]} 3... d5 {[%clk 0:02:39.2]}
4. Bg2 {[%clk 0:02:59]} 4... Be7 {[%clk 0:02:38.2]} 5. Nf3 {[%clk 0:02:57.8]}
5... O-O {[%clk 0:02:38.5]} 6. Qc2 {[%clk 0:02:58]} 6... dxc4 {[%clk 0:02:39.4]}
7. Qxc4 {[%clk 0:02:58.1]} 7... a6 {[%clk 0:02:24.7]} 8. Qc2 {[%clk 0:02:54.3]}
8... Bd7 {[%clk 0:02:12.8]} 9. Ne5 {[%clk 0:02:52.1]} 9... Nc6 {[%clk
0:02:09.4]} 10. Nxc6 {[%clk 0:02:36.3]} 10... Bxc6 {[%clk 0:02:10.3]} 11. Bxc6
{[%clk 0:02:35.1]} 11... bxc6 {[%clk 0:02:10.7]} 12. e3 {[%clk 0:02:28.1]} 12...
Qd5 {[%clk 0:02:04.2]} 13. O-O {[%clk 0:02:27.4]} 13... c5 {[%clk 0:01:57.8]}
14. Nc3 {[%clk 0:02:25.1]} 14... Qc6 {[%clk 0:01:54.2]} 15. Na4 {[%clk
0:02:21.5]} 15... Ne4 {[%clk 0:01:48.6]} 16. f3 {[%clk 0:02:12.7]} 16... Ng5
{[%clk 0:01:45.9]} 17. e4 {[%clk 0:02:12.7]} 17... f5 {[%clk 0:01:36.5]} 18. h4
{[%clk 0:01:52.7]} 18... Nf7 {[%clk 0:01:04.7]} 19. Be3 {[%clk 0:01:41.5]} 19...
fxe4 {[%clk 0:00:59.7]} 20. fxe4 {[%clk 0:01:39.6]} 20... Nd6 {[%clk 0:00:59.7]}
21. Nxc5 {[%clk 0:01:34.2]} 21... Nf7 {[%clk 0:00:24.9]} 22. Qa4 {[%clk
0:01:13.4]} 22... Qd6 {[%clk 0:00:20.6]} 23. Bf4 {[%clk 0:01:02.4]} 23... e5
{[%clk 0:00:21]} 24. Qd7 {[%clk 0:00:27.9]} 24... exf4 {[%clk 0:00:17.6]} 25.
Qxd6 {[%clk 0:00:27.1]} 25... Bxd6 {[%clk 0:00:14.9]} 26. Ne6 {[%clk 0:00:27.1]}
26... Rfe8 {[%clk 0:00:14.7]} 27. d5 {[%clk 0:00:21.2]} 27... fxg3 {[%clk
0:00:14.3]} 28. Kg2 {[%clk 0:00:21.4]} 28... Ne5 {[%clk 0:00:14.8]} 29. Rac1
{[%clk 0:00:20.3]} 29... Re7 {[%clk 0:00:14.6]} 30. Rc3 {[%clk 0:00:19.2]} 30...
Rf7 {[%clk 0:00:14.4]} 31. Rxf7 {[%clk 0:00:17.7]} 31... Kxf7 {[%clk 0:00:15.3]}
32. Nxc7 {[%clk 0:00:17.3]} 32... Rc8 {[%clk 0:00:11.1]} 33. Nxa6 {[%clk
0:00:17.2]} 33... Rxc3 {[%clk 0:00:09.3]} 34. bxc3 {[%clk 0:00:17.3]} 34... Nc4
{[%clk 0:00:09.4]} 35. Nb4 {[%clk 0:00:15.4]} 35... Kf6 {[%clk 0:00:04.8]} 36.
Nd3 {[%clk 0:00:14.1]} 36... Ne3+ {[%clk 0:00:04.2]} 37. Kg1 {[%clk 0:00:12.5]}
37... Ke7 {[%clk 0:00:01.8]} 38. a4 {[%clk 0:00:11.3]} 38... Nc4 {[%clk
0:00:02.1]} 39. Kg2 {[%clk 0:00:09.8]} 39... Kd7 {[%clk 0:00:02.4]} 40. Kf3
{[%clk 0:00:09.1]} 40... Ne5+ {[%clk 0:00:01.8]} 41. Nxe5+ {[%clk 0:00:07.8]}
41... Bxe5 {[%clk 0:00:02.7]} 42. c4 {[%clk 0:00:07.6]} 42... Kc7 {[%clk
0:00:02.9]} 43. c5 {[%clk 0:00:07.6]} 43... g6 {[%clk 0:00:02]} 44. Kg2 {[%clk
0:00:06.3]} 44... Bd4 {[%clk 0:00:02.5]} 45. c6 {[%clk 0:00:04.9]} 45... Be5
{[%clk 0:00:02.7]} 46. a5 {[%clk 0:00:04.6]} 46... h6 {[%clk 0:00:02]} 47. Kf3
{[%clk 0:00:04.4]} 47... g5 {[%clk 0:00:02.2]} 48. hxg5 {[%clk 0:00:04.5]} 48...
h5 {[%clk 0:00:02.6]} 49. g6 {[%clk 0:00:03.6]} 49... h4 {[%clk 0:00:02.6]} 50.
Kg2 {[%clk 0:00:03.8]} 50... Kd6 {[%clk 0:00:01.8]} 51. a6 {[%clk 0:00:02.8]}
1-0

[Event "Late-Titled-Tuesday-Blitz-May-14-2024"]
[Site "Chess.com"]
[Date "2024.05.14"]
[Round "1"]
[White "Hamisandwich"]
[Black "Walter_White_Poland"]
[Result "1-0"]
[WhiteElo "2728"]
[BlackElo "2399"]
[TimeControl "180+1"]
[EndTime "14:07:54 PDT"]
[Termination "Hamisandwich won by resignation"]

1. d4 {[%clk 0:02:59.2]} 1... d5 {[%clk 0:02:59.9]} 2. Bf4 {[%clk 0:02:58]} 2...
c5 {[%clk 0:02:50.1]} 3. e3 {[%clk 0:02:58.9]} 3... Nc6 {[%clk 0:02:35.3]} 4. c3
{[%clk 0:02:57.5]} 4... Nf6 {[%clk 0:02:34.4]} 5. Nd2 {[%clk 0:02:56.9]} 5...
Qb6 {[%clk 0:02:34]} 6. Qb3 {[%clk 0:02:56.5]} 6... c4 {[%clk 0:02:33.7]} 7. Qc2
{[%clk 0:02:53.5]} 7... Bg4 {[%clk 0:02:33.6]} 8. b3 {[%clk 0:02:49.2]} 8...
cxb3 {[%clk 0:02:30.5]} 9. axb3 {[%clk 0:02:50.1]} 9... Rc8 {[%clk 0:02:29.7]}
10. Ngf3 {[%clk 0:02:38.7]} 10... e6 {[%clk 0:02:27.2]} 11. Be2 {[%clk
0:02:35.1]} 11... Bf5 {[%clk 0:02:24.3]} 12. Qb2 {[%clk 0:02:34.9]} 12... Nh5
{[%clk 0:02:12.4]} 13. Bg5 {[%clk 0:02:20.6]} 13... h6 {[%clk 0:01:58.6]} 14.
Bh4 {[%clk 0:02:20.9]} 14... g5 {[%clk 0:01:52.6]} 15. Bg3 {[%clk 0:02:21]}
15... Bg7 {[%clk 0:01:35.9]} 16. Qa3 {[%clk 0:02:07.4]} 16... a6 {[%clk
0:01:30.3]} 17. Bd6 {[%clk 0:02:06.5]} 17... Qd8 {[%clk 0:01:07.1]} 18. h3
{[%clk 0:01:48.8]} 18... Nf6 {[%clk 0:01:06.3]} 19. O-O {[%clk 0:01:24]} 19...
Ne4 {[%clk 0:00:55.1]} 20. Nxe4 {[%clk 0:01:22.5]} 20... Bxe4 {[%clk 0:00:55.4]}
21. Nd2 {[%clk 0:01:23.2]} 21... Bg6 {[%clk 0:00:53.8]} 22. c4 {[%clk
0:01:20.1]} 22... h5 {[%clk 0:00:51.9]} 23. cxd5 {[%clk 0:00:54.5]} 23... exd5
{[%clk 0:00:51.4]} 24. g3 {[%clk 0:00:52.3]} 24... h4 {[%clk 0:00:41.4]} 25. g4
{[%clk 0:00:49.5]} 25... f5 {[%clk 0:00:40.9]} 26. Rfc1 {[%clk 0:00:42.3]} 26...
Qd7 {[%clk 0:00:27.3]} 27. Bf3 {[%clk 0:00:24.4]} 27... Qe6 {[%clk 0:00:26.5]}
28. Qc5 {[%clk 0:00:20.5]} 28... fxg4 {[%clk 0:00:26.7]} 29. Bxg4 {[%clk
0:00:20.3]} 29... Bf5 {[%clk 0:00:26.6]} 30. Bxf5 {[%clk 0:00:16.7]} 30... Qxf5
{[%clk 0:00:26.4]} 31. Kg2 {[%clk 0:00:09]} 31... g4 {[%clk 0:00:25.4]} 32. Rh1
{[%clk 0:00:09.3]} 32... gxh3+ {[%clk 0:00:24.7]} 33. Kf1 {[%clk 0:00:09.9]}
33... Bh6 {[%clk 0:00:20.5]} 34. Ke2 {[%clk 0:00:09.3]} 34... Rg8 {[%clk
0:00:16.6]} 35. Rag1 {[%clk 0:00:08.6]} 35... Rg2 {[%clk 0:00:15]} 36. Rf1
{[%clk 0:00:08.3]} 36... Kd7 {[%clk 0:00:12.5]} 37. Bh2 {[%clk 0:00:07.6]} 37...
Bxe3 {[%clk 0:00:11.5]} 38. Qd6+ {[%clk 0:00:07.6]} 38... Ke8 {[%clk 0:00:10.7]}
39. Nf3 {[%clk 0:00:07.2]} 39... Kf7 {[%clk 0:00:08.2]} 40. Kxe3 {[%clk
0:00:06.7]} 40... Re8+ {[%clk 0:00:08.3]} 41. Ne5+ {[%clk 0:00:07.5]} 41... Nxe5
{[%clk 0:00:07.8]} 42. Bxe5 {[%clk 0:00:08.4]} 42... Qe4+ {[%clk 0:00:07.7]} 43.
Kd2 {[%clk 0:00:08.3]} 43... Rc8 {[%clk 0:00:05.2]} 44. Qf6+ {[%clk 0:00:08.5]}
44... Ke8 {[%clk 0:00:05.1]} 45. Rc1 {[%clk 0:00:08.7]} 45... Rxc1 {[%clk
0:00:02.1]} 46. Rxc1 {[%clk 0:00:09.6]} 46... Rxf2+ {[%clk 0:00:01.8]} 47. Qxf2
{[%clk 0:00:10.4]} 47... Qg2 {[%clk 0:00:01.2]} 48. Qxg2 {[%clk 0:00:10.6]}
48... hxg2 {[%clk 0:00:02.1]} 49. Rg1 {[%clk 0:00:10.4]} 49... h3 {[%clk
0:00:03]} 50. Ke3 {[%clk 0:00:10.9]} 50... Kd7 {[%clk 0:00:03.9]} 51. Kf3 {[%clk
0:00:11.1]} 51... Ke6 {[%clk 0:00:04.8]} 52. Kg4 {[%clk 0:00:11.7]} 1-0

[Event "Late-Titled-Tuesday-Blitz-May-14-2024"]
[Site "Chess.com"]
[Date "2024.05.14"]
[Round "1"]
[White "karpovian123"]
[Black "The_Machine04"]
[Result "0-1"]
[WhiteElo "2348"]
[BlackElo "2670"]
[TimeControl "180+1"]
[EndTime "14:07:58 PDT"]
[Termination "The_Machine04 won by resignation"]

1. Nf3 {[%clk 0:03:00]} 1... d6 {[%clk 0:02:56.2]} 2. c4 {[%clk 0:02:59.5]} 2...
e5 {[%clk 0:02:55.9]} 3. Nc3 {[%clk 0:02:59.6]} 3... f5 {[%clk 0:02:55.8]} 4. d4
{[%clk 0:02:57.2]} 4... e4 {[%clk 0:02:55.5]} 5. Ng5 {[%clk 0:02:56.8]} 5... Be7
{[%clk 0:02:54.6]} 6. Nh3 {[%clk 0:02:43]} 6... Nf6 {[%clk 0:02:53.8]} 7. Bg5
{[%clk 0:02:42.6]} 7... O-O {[%clk 0:02:51.3]} 8. e3 {[%clk 0:02:42.4]} 8... c6
{[%clk 0:02:50.9]} 9. Nf4 {[%clk 0:02:34.8]} 9... Na6 {[%clk 0:02:50.2]} 10. a3
{[%clk 0:02:32]} 10... Nc7 {[%clk 0:02:49.6]} 11. b4 {[%clk 0:02:31.3]} 11... h6
{[%clk 0:02:44]} 12. Bxf6 {[%clk 0:02:29.8]} 12... Bxf6 {[%clk 0:02:44.9]} 13.
Be2 {[%clk 0:02:21.3]} 13... g5 {[%clk 0:02:42]} 14. Nh5 {[%clk 0:02:12.6]}
14... Bh8 {[%clk 0:02:41]} 15. h4 {[%clk 0:02:12.7]} 15... Be6 {[%clk
0:02:32.2]} 16. hxg5 {[%clk 0:02:11.4]} 16... hxg5 {[%clk 0:02:33.1]} 17. g4
{[%clk 0:01:33.8]} 17... d5 {[%clk 0:02:21.5]} 18. gxf5 {[%clk 0:01:32.6]} 18...
Bxf5 {[%clk 0:02:21.8]} 19. Bg4 {[%clk 0:01:22.4]} 19... Qd7 {[%clk 0:02:18.3]}
20. Rg1 {[%clk 0:01:05]} 20... Bxg4 {[%clk 0:02:12.1]} 21. Qxg4 {[%clk
0:01:03.1]} 21... Qxg4 {[%clk 0:02:08.9]} 22. Rxg4 {[%clk 0:01:04]} 22... Kh7
{[%clk 0:02:00.6]} 23. Rxg5 {[%clk 0:01:03.4]} 23... Kh6 {[%clk 0:02:00.5]} 24.
Rg3 {[%clk 0:00:29.2]} 24... Kxh5 {[%clk 0:00:49.8]} 25. Ke2 {[%clk 0:00:29]}
25... Bf6 {[%clk 0:00:48.3]} 26. Rh1+ {[%clk 0:00:29.2]} 26... Bh4 {[%clk
0:00:48.3]} 27. Rgh3 {[%clk 0:00:29.4]} 27... Rxf2+ {[%clk 0:00:48.2]} 28. Kd1
{[%clk 0:00:22.9]} 28... Rg8 {[%clk 0:00:27.5]} 29. Rxh4+ {[%clk 0:00:22.6]}
29... Kg5 {[%clk 0:00:27.8]} 30. Ne2 {[%clk 0:00:20.1]} 30... Kf6 {[%clk
0:00:22.6]} 31. Rh6+ {[%clk 0:00:20]} 31... Rg6 {[%clk 0:00:22.7]} 32. Nf4
{[%clk 0:00:19.6]} 32... Rxh6 {[%clk 0:00:21.6]} 33. Rxh6+ {[%clk 0:00:20.5]}
33... Kg5 {[%clk 0:00:17.3]} 34. Rg6+ {[%clk 0:00:20.3]} 34... Kf5 {[%clk
0:00:17.4]} 35. Rg7 {[%clk 0:00:19.3]} 35... Na6 {[%clk 0:00:09.2]} 36. Rf7+
{[%clk 0:00:18.6]} 36... Kg4 {[%clk 0:00:09.5]} 37. Rxb7 {[%clk 0:00:18.4]}
37... Kf3 {[%clk 0:00:09]} 38. b5 {[%clk 0:00:17.5]} 38... Kxe3 {[%clk
0:00:08.4]} 39. Ne6 {[%clk 0:00:16.2]} 39... Kd3 {[%clk 0:00:05.2]} 40. Ke1
{[%clk 0:00:15.1]} 40... e3 {[%clk 0:00:02.5]} 41. bxa6 {[%clk 0:00:14.9]} 41...
dxc4 {[%clk 0:00:02.3]} 42. Nc5+ {[%clk 0:00:13.7]} 42... Kxd4 {[%clk
0:00:02.2]} 43. Ne6+ {[%clk 0:00:13.4]} 43... Kd3 {[%clk 0:00:02.1]} 44. Rd7+
{[%clk 0:00:13.8]} 44... Kc3 {[%clk 0:00:02.3]} 45. Nc5 {[%clk 0:00:14.2]} 45...
Ra2 {[%clk 0:00:02.5]} 46. Ne4+ {[%clk 0:00:14.3]} 46... Kb3 {[%clk 0:00:02.5]}
47. Rb7+ {[%clk 0:00:14.3]} 47... Kxa3 {[%clk 0:00:02.6]} 48. Nc3 {[%clk
0:00:14.3]} 48... Rb2 {[%clk 0:00:02.6]} 49. Rxb2 {[%clk 0:00:14.1]} 49... Kxb2
{[%clk 0:00:03.5]} 50. Ne4 {[%clk 0:00:14]} 50... c3 {[%clk 0:00:03.8]} 51. Nxc3
{[%clk 0:00:12.2]} 51... Kxc3 {[%clk 0:00:04.7]} 52. Ke2 {[%clk 0:00:12.8]}
52... Kb4 {[%clk 0:00:04.5]} 53. Kxe3 {[%clk 0:00:12.8]} 53... c5 {[%clk
0:00:05.2]} 54. Kd3 {[%clk 0:00:13.2]} 54... Kb3 {[%clk 0:00:05.1]} 55. Kd2
{[%clk 0:00:13.4]} 55... c4 {[%clk 0:00:05.7]} 56. Kc1 {[%clk 0:00:13.8]} 56...
Kc3 {[%clk 0:00:06.3]} 57. Kb1 {[%clk 0:00:14.3]} 57... Kd2 {[%clk 0:00:06.9]}
0-1